bitfinex-derivatives/quotes_ETHF0:USTF0_20250123
["timestamp","ask_amount","ask_price","bid_price","bid_amount"]
[1737642969808,3.89017784,3265.2,3265.0,3.2078]
[1737642970209,3.89017784,3265.4,3265.0,3.2078]
[1737642970402,3.35248363,3266.0,3265.0,3.2078]
[1737642970608,3.35248363,3266.0,3265.4,3.2078]
[1737642970903,3.35248363,3265.5,3264.9,3.2078]
[1737642971107,3.96521363,3265.5,3264.9,3.2078]
[1737642971309,4.02230416,3265.4,3264.9,3.2078]
[1737642971497,4.02230416,3265.4,3264.7,0.61287]
[1737642971498,4.02230416,3265.4,3265.3,3.2078]
[1737642971702,3.94512209,3265.5,3265.3,3.2078]
[1737642971902,3.94512209,3265.4,3265.3,3.2078]
[1737642972099,3.94512209,3265.9,3265.3,3.2078]
[1737642972401,3.94512209,3265.5,3265.3,3.2078]
[1737642972611,3.94512209,3265.9,3265.3,3.2078]
[1737642972914,4.06338185,3266.2,3265.7,3.19556]
[1737642973116,4.06338185,3265.8,3265.7,3.19556]
[1737642973410,4.06338185,3266.1,3265.7,3.19556]
[1737642973806,4.00663308,3265.8,3265.7,3.19556]
[1737642974000,4.00663308,3266.0,3265.7,3.19556]
[1737642974202,0.6171381,3266.4,3265.7,3.19556]
[1737642974406,0.6171381,3266.4,3264.7,0.9572]
[1737642974407,0.0045681,3266.4,3266.1,3.2078]
[1737642974908,3.96508363,3266.2,3266.1,3.2078]
[1737642975104,4.0006679,3266.3,3266.1,3.2078]
[1737642975302,0.0045681,3266.4,3266.2,0.61259]
[1737642975503,4.0006679,3266.2,3266.1,3.2078]
[1737642975704,3.35248363,3267.2,3266.1,3.2078]
[1737642976007,4.00961535,3266.7,3266.5,3.2078]
[1737642976505,4.00961535,3266.6,3266.5,3.2078]
[1737642976711,4.00961535,3266.6,3266.1,3.2078]
[1737642977004,3.35248363,3266.7,3266.2,0.00459227]
[1737642977204,3.9116955,3266.5,3266.2,0.00459227]
[1737642977515,3.9116955,3266.6,3266.2,0.00459227]
[1737642977706,0.61258,3266.3,3266.2,0.00459227]
[1737642978111,4.67598125,3266.3,3266.2,0.00459227]
[1737642978310,0.00459227,3266.9,3266.2,0.00459227]
[1737642978509,0.00459227,3266.9,3266.6,3.2078]
[1737642978906,0.00459227,3266.9,3266.8,0.61249]
[1737642979106,0.61239,3267.4,3266.7,0.6125]
[1737642979311,0.00214201,3268.0,3267.0,3.2078]
[1737642979509,3.8902071,3267.8,3267.7,3.82011]
[1737642979711,3.2078,3269.1,3267.7,3.2078]
[1737642979917,3.2078,3269.1,3268.3,3.2078]
[1737642980110,0.61208,3269.0,3268.5,3.2078]
[1737642980413,4.0591448,3268.9,3268.5,3.2078]
[1737642980603,0.61217,3268.5,3268.4,0.00459227]
[1737642981021,4.53462406,3268.5,3268.4,0.00459227]
[1737642981217,4.53462406,3268.5,3267.5,3.2078]
[1737642981218,0.61234,3267.6,3267.5,3.2078]
[1737642981507,0.61234,3267.6,3265.7,1.53172]
[1737642981508,3.2078,3267.9,3266.8,3.2078]
[1737642981715,3.92245406,3267.6,3267.5,0.61234]
[1737642981905,3.92245406,3267.6,3267.5,3.2078]
[1737642982106,4.53479406,3267.6,3267.5,3.2078]
[1737642982305,3.92576001,3267.8,3266.1,2.47942]
[1737642982306,0.6124,3267.3,3267.0,3.2078]
[1737642982506,0.6124,3267.3,3267.2,0.00459227]
[1737642982714,3.92576001,3267.6,3267.2,0.00459227]
[1737642983009,4.00207654,3267.3,3267.2,0.00459227]
[1737642983415,4.61439654,3267.8,3267.2,0.00459227]
[1737642983613,0.61232,3267.8,3267.2,0.00459227]
[1737642983816,3.95261735,3267.5,3267.2,0.00459227]
[1737642984014,4.56499735,3267.5,3267.2,0.00459227]
[1737642984215,3.95261735,3267.7,3267.2,0.00459227]
[1737642984717,4.56495735,3267.7,3267.2,0.00459227]
[1737642984919,0.61234,3267.6,3267.2,0.00459227]
[1737642985218,0.61239,3267.4,3267.2,0.00459227]
[1737642985412,0.61237,3267.5,3267.2,0.00459227]
[1737642985718,3.94239575,3267.7,3267.4,3.2078]
[1737642987016,0.00459227,3267.9,3267.4,3.2078]
[1737642987520,0.00459227,3267.9,3267.8,3.2078]
[1737642987814,0.00459227,3267.9,3267.8,3.8201]
[1737642988020,0.00459227,3267.9,3267.8,3.2078]
[1737642988520,0.00459227,3267.9,3267.8,3.8201]
[1737642989121,3.35248363,3269.0,3268.2,0.61221]
[1737642989316,0.61217,3268.6,3268.3,3.2078]
[1737642989516,3.94086215,3268.8,3268.3,3.2078]
[1737642989720,0.61217,3268.5,3268.3,3.2078]
[1737642989920,0.61218,3268.5,3268.3,3.2078]
[1737642990116,3.98255019,3268.4,3268.3,3.2078]
[1737642990319,4.59474019,3268.4,3268.3,3.2078]
[1737642991220,0.61219,3268.4,3268.3,3.2078]
[1737642991523,0.61238,3267.4,3267.3,3.2078]
[1737642991821,3.96481363,3267.7,3267.3,3.2078]
[1737642992022,4.00365901,3267.4,3267.3,3.2078]
[1737642992223,7.21145901,3267.4,3265.7,3.2078]
[1737642992422,3.35248363,3266.5,3265.6,3.2078]
[1737642992932,3.99137046,3266.4,3265.9,0.61264]
[1737642993231,3.99137046,3266.4,3266.0,3.2078]
[1737642993413,3.99137046,3266.4,3266.3,0.61258]
[1737642993616,0.00459227,3266.5,3266.4,0.61256]
[1737642993822,0.00459227,3266.5,3266.0,3.2078]
[1737642994016,3.95879597,3266.5,3266.4,3.2078]
[1737642994217,3.95879597,3266.5,3266.4,3.82036]
[1737642994423,0.00459227,3266.5,3266.4,3.82036]
[1737642995526,0.00459227,3266.5,3266.4,3.2078]
[1737642996023,0.00459227,3266.5,3266.4,3.82036]
[1737642996215,0.00459227,3266.5,3266.4,3.2078]
[1737642996421,0.00459227,3266.5,3266.4,3.82036]
[1737642997020,0.00459227,3266.5,3266.4,3.2078]
[1737642997221,0.00459227,3266.5,3266.4,3.82036]
[1737642997726,0.00459227,3266.5,3266.4,3.2078]
[1737642998317,0.61714227,3266.5,3266.4,3.2078]
[1737642998720,4.53691909,3266.5,3266.4,3.2078]
[1737642998919,3.92436909,3266.5,3266.4,3.2078]
[1737642999120,0.00459227,3266.5,3266.4,3.82036]
[1737642999315,0.00459227,3266.5,3266.4,3.2078]
[1737642999516,4.67769856,3266.5,3266.4,3.2078]
[1737642999719,4.06514856,3266.5,3266.4,3.2078]
[1737642999927,0.00459227,3266.5,3266.4,3.82036]
[1737643000427,3.96759382,3266.5,3266.4,3.2078]
[1737643000622,3.96759382,3266.5,3266.4,3.82036]
[1737643000923,0.61244,3267.1,3266.8,0.61249]
[1737643001124,5.79748363,3268.2,3267.0,3.2078]
[1737643001324,5.79746363,3268.2,3267.4,3.2078]
[1737643001618,4.05729466,3267.5,3267.4,3.2078]
[1737643001819,0.61236,3267.5,3267.4,3.2078]
[1737643002025,0.61234,3267.7,3267.4,3.2078]
[1737643002227,0.61229,3267.9,3267.5,0.61235]
[1737643002424,0.61226,3268.1,3267.8,3.2078]
[1737643002620,3.35248363,3268.2,3267.8,3.2078]
[1737643002827,1.8732,3268.3,3267.8,3.2078]
[1737643003328,3.99964621,3268.2,3267.8,3.2078]
[1737643003629,4.61188621,3268.2,3267.8,3.82009]
[1737643003823,4.61188621,3268.2,3267.8,3.2078]
[1737643003824,3.99964621,3268.2,3267.8,3.2078]
[1737643004024,0.61218,3268.5,3267.8,3.2078]
[1737643004224,3.35248363,3268.7,3267.4,1.53092]
[1737643004225,3.35248363,3268.7,3268.0,3.2078]
[1737643004431,3.91225844,3268.4,3268.0,3.2078]
[1737643004827,0.61222,3268.3,3268.0,3.2078]
[1737643005124,3.93730164,3268.2,3268.0,3.2078]
[1737643005330,3.93730164,3268.2,3268.1,0.61225]
[1737643005530,3.35248363,3269.2,3268.0,3.2078]
[1737643005825,10.49825737,3268.7,3268.1,3.2078]
[1737643006019,0.61223,3268.2,3268.1,3.2078]
[1737643006422,4.55020374,3268.2,3268.1,3.2078]
[1737643006824,0.61232,3267.7,3267.6,3.2078]
[1737643007027,3.35248363,3267.7,3267.2,3.2078]
[1737643007229,0.6124,3267.3,3267.2,3.2078]
[1737643007435,3.2078,3267.5,3267.1,0.00459227]
[1737643007626,0.61241,3267.2,3267.1,0.00459227]
[1737643007928,7.36372289,3267.2,3265.7,3.2078]
[1737643008231,0.6127,3265.7,3264.9,7.88708461]
[1737643008525,0.61279,3265.2,3264.9,4.67928461]
[1737643008732,4.01123926,3265.6,3264.9,4.67928461]
[1737643008934,4.01123926,3265.6,3265.2,3.2078]
[1737643009130,4.01583153,3265.6,3265.2,3.2078]
[1737643009525,0.00459227,3265.6,3265.5,0.61273]
[1737643009928,0.00459227,3265.6,3265.2,3.2078]
[1737643010137,4.05920822,3265.6,3265.2,3.2078]
[1737643010328,0.61274,3265.5,3265.2,3.2078]
[1737643010523,4.05920822,3265.6,3265.2,3.2078]
[1737643010926,3.93525421,3265.4,3265.2,3.2078]
[1737643011236,3.93525421,3265.4,3265.3,0.61277]
[1737643011427,2.49941078,3265.4,3265.3,0.61277]
[1737643011627,1.0751,3266.8,3265.3,5.0]
[1737643011833,0.61254,3266.6,3266.3,3.2078]
[1737643012029,4.05614056,3266.6,3266.3,3.2078]
[1737643012234,3.69335077,3266.6,3266.5,0.61255]
[1737643012434,3.54643576,3266.6,3266.5,0.61255]
[1737643012832,3.35248363,3268.0,3266.5,40.8]
[1737643013035,3.35248363,3268.0,3267.4,3.2078]
[1737643013336,2.1847,3268.4,3267.4,3.2078]
[1737643013337,4.06648672,3267.9,3267.8,3.2078]
[1737643013841,7.41897035,3268.0,3267.8,3.2078]
[1737643014140,0.61232,3267.7,3267.4,3.21239227]
[1737643014331,7.41897035,3268.0,3267.4,3.21239227]
[1737643014536,0.61236,3267.5,3267.4,3.21239227]
[1737643014741,3.96484363,3267.5,3267.4,0.00459227]
[1737643015036,0.61243,3267.1,3267.0,3.2078]
[1737643015545,3.88991446,3267.1,3267.0,3.2078]
[1737643015837,3.35248363,3268.6,3267.0,3.2078]
[1737643016036,1.0751,3268.4,3267.9,3.2078]
[1737643016340,1.68729,3268.4,3268.3,3.2078]
[1737643016527,1.0751,3268.4,3268.3,3.2078]
[1737643016727,4.97583756,3268.4,3268.3,3.2078]
[1737643017026,3.90073756,3268.4,3268.3,3.2078]
[1737643017433,3.90073756,3268.4,3267.8,3.2078]
[1737643017942,3.90073756,3268.4,3268.2,3.2078]
[1737643018536,8.90073756,3268.4,3267.4,3.2078]
[1737643018844,0.61236,3267.5,3267.4,3.2078]
[1737643019040,0.61236,3267.5,3267.2,0.00459227]
[1737643019041,0.6124,3267.3,3267.2,0.00459227]
[1737643019241,3.2078,3267.3,3266.5,3.2078]
[1737643019540,3.35248363,3267.0,3266.5,3.2078]
[1737643019940,0.61253,3266.6,3266.1,3.2078]
[1737643020142,3.2078,3266.5,3265.5,3.2078]
[1737643020339,0.61263,3266.1,3266.0,0.00459227]
[1737643020642,4.60627363,3266.1,3266.0,0.00459227]
[1737643020841,3.99364363,3266.1,3266.0,0.00459227]
[1737643021041,0.00459227,3266.3,3266.1,0.61261]
[1737643021243,0.61251,3266.7,3266.0,0.61722227]
[1737643021444,4.3715,3267.9,3266.5,3.2078]
[1737643021633,3.06008,3269.4,3266.0,0.00459227]
[1737643021634,3.2078,3268.4,3267.4,3.2078]
[1737643021839,1.5305,3268.4,3267.4,3.2078]
[1737643022030,3.2078,3268.2,3267.4,3.2078]
[1737643022237,0.61236,3267.5,3267.4,3.2078]
[1737643022437,3.35248363,3267.6,3267.0,3.2078]
[1737643022630,3.35248363,3267.6,3266.7,0.9472]
[1737643022631,4.0095322,3267.5,3267.4,3.2078]
[1737643022837,4.0095322,3267.7,3267.6,0.61234]
[1737643023037,3.91027707,3267.9,3267.5,0.61234]
[1737643023240,0.61227,3268.0,3267.8,3.2078]
[1737643023441,0.00459227,3268.1,3267.8,3.2078]
[1737643023640,3.91027707,3267.9,3267.8,3.2078]
[1737643023842,0.61228,3267.9,3267.8,3.2078]
[1737643024039,0.61236,3267.5,3267.4,3.2078]
[1737643024236,3.35248363,3267.7,3267.1,0.00459227]
[1737643024440,0.61241,3267.3,3267.1,0.00459227]
[1737643024642,4.03651237,3267.6,3267.2,0.61241]
[1737643024843,3.21239227,3268.1,3267.3,3.2078]
[1737643025048,3.93593839,3267.4,3267.3,3.2078]
[1737643025243,3.93593839,3267.5,3267.3,3.2078]
[1737643025544,0.61235,3267.6,3267.3,3.20625582]
[1737643025744,0.00459227,3268.1,3267.3,3.20625582]
[1737643025942,0.61241,3267.2,3267.1,0.00459227]
[1737643026350,3.89792912,3267.2,3267.1,0.00459227]
[1737643026744,3.89792912,3267.6,3267.1,0.00459227]
[1737643026946,0.00459227,3268.1,3267.3,3.2078]
[1737643027147,3.93427443,3267.5,3267.3,3.2078]
[1737643027549,3.2078,3267.8,3267.3,3.2078]
[1737643027744,4.54665443,3267.4,3267.3,3.2078]
[1737643027950,0.61238,3267.4,3267.3,3.2078]
[1737643028347,4.57527824,3267.4,3267.3,3.2078]
[1737643028645,8.96289824,3267.4,3267.1,0.00459227]
[1737643028846,8.96289824,3267.4,3266.7,3.2078]
[1737643028847,3.35248363,3267.2,3266.3,3.2078]
[1737643029046,3.2078,3266.9,3265.9,3.2078]
[1737643029252,7.09829095,3267.1,3266.7,3.2078]
[1737643029449,3.89049095,3266.8,3266.7,3.2078]
[1737643029852,2.269,3267.3,3266.7,3.2078]
[1737643029853,0.61248,3266.9,3266.7,3.2078]
[1737643030055,0.61249,3266.8,3266.7,3.2078]
[1737643030254,0.61249,3266.8,3266.4,0.00459227]
[1737643030255,0.61254,3266.5,3266.4,0.00459227]
[1737643030447,4.05825332,3266.8,3266.4,0.00459227]
[1737643030647,4.05825332,3266.5,3266.4,0.00459227]
[1737643030849,4.67079332,3266.5,3266.4,0.00459227]
[1737643031352,4.05825332,3266.5,3266.4,0.61715227]
[1737643031855,4.73879,3267.4,3266.4,0.00459227]
[1737643032052,4.88332363,3267.7,3266.7,3.2078]
[1737643032352,3.97769793,3267.2,3266.4,0.00459227]
[1737643032556,3.97769793,3267.2,3267.1,3.82023]
[1737643032758,3.97769793,3267.6,3267.5,0.61236]
[1737643032968,3.97769793,3267.6,3267.5,3.82016]
[1737643033263,4.59003793,3267.6,3267.5,3.2078]
[1737643033656,0.61234,3267.6,3267.5,3.2078]
[1737643033858,3.2078,3267.8,3267.0,3.2078]
[1737643034055,1.53076,3267.8,3267.0,3.2078]
[1737643034257,1.53523227,3268.1,3266.6,40.8]
[1737643034258,3.91515905,3267.6,3267.4,3.2078]
[1737643034460,2.85324856,3267.6,3267.5,0.61236]
[1737643034657,3.91515905,3268.0,3267.4,3.2078]
[1737643034856,3.09618947,3268.0,3267.9,3.82008]
[1737643035362,0.00459227,3268.1,3267.9,3.2078]
[1737643035565,0.00459227,3268.1,3267.9,44.0078]
[1737643035961,0.00459227,3268.1,3268.0,0.61226]
[1737643036761,0.00459227,3268.1,3267.9,3.2078]
[1737643036968,0.61684227,3268.1,3267.9,3.2078]
[1737643037165,3.93310762,3268.1,3267.9,3.2078]
[1737643037366,8.93310762,3268.1,3267.1,3.2078]
[1737643037670,0.61234,3267.6,3267.1,3.82022]
[1737643037963,3.35248363,3267.7,3267.1,3.2078]
[1737643038163,3.91534366,3267.5,3267.4,0.61238]
[1737643038370,4.52770366,3267.5,3267.4,3.2078]
[1737643038555,3.91534366,3267.5,3267.4,3.2078]
[1737643038760,3.91534366,3267.9,3267.4,3.2078]
[1737643038969,5.65281366,3268.0,3267.8,3.2078]
[1737643038970,5.04054366,3268.0,3267.8,3.2078]
[1737643039272,1.1252,3268.0,3267.8,3.2078]
[1737643039463,4.03163965,3267.9,3267.2,3.2078]
[1737643039969,0.61237,3267.5,3267.2,3.2078]
[1737643040157,0.61239,3267.3,3267.2,3.2078]
[1737643040363,4.06146237,3267.4,3266.8,3.2078]
[1737643040558,0.61241,3267.2,3266.8,3.2078]
[1737643040771,0.61247,3266.9,3266.8,3.2078]
[1737643040966,3.2078,3267.1,3266.4,0.00459227]
[1737643041158,5.16596237,3267.3,3266.7,3.2078]
[1737643041159,1.1045,3267.3,3266.7,3.2078]
[1737643041365,0.00459227,3268.1,3267.2,3.2078]
[1737643041665,0.00459227,3268.1,3268.0,0.61226]
[1737643042169,0.00459227,3268.1,3267.8,3.2078]
[1737643042561,0.00459227,3268.1,3267.9,0.61228]
[1737643042762,0.00459227,3268.1,3267.8,3.2078]
[1737643042971,0.00459227,3268.1,3267.9,0.61228]
[1737643043164,0.00459227,3268.1,3268.0,0.61226]
[1737643044863,0.00459227,3268.1,3267.8,3.2078]
[1737643045061,3.94192265,3268.1,3267.8,3.2078]
[1737643045461,0.61227,3268.0,3267.8,3.2078]
[1737643045659,3.94192265,3268.1,3267.8,3.2078]
[1737643045860,0.61227,3268.0,3267.8,3.2078]
[1737643046064,0.00459227,3268.1,3267.8,3.2078]
[1737643046264,4.00495701,3268.0,3267.8,3.2078]
[1737643047471,0.00459227,3268.1,3267.8,3.82008]
[1737643047673,0.00459227,3268.1,3267.8,3.2078]
[1737643047874,0.00459227,3268.1,3267.9,0.61228]
[1737643048172,3.35248363,3270.0,3268.2,3.2078]
[1737643048369,3.35248363,3270.0,3269.0,3.2078]
[1737643048574,4.58174314,3269.4,3269.0,3.2078]
[1737643048876,0.61201,3269.4,3268.8,0.6121]
[1737643049081,3.89289655,3269.3,3269.1,3.2078]
[1737643049371,3.89748882,3269.5,3269.1,3.2078]
[1737643049570,3.89289655,3269.2,3269.1,3.2078]
[1737643049771,3.89289655,3269.2,3269.1,3.81986]
[1737643049964,0.00459227,3269.5,3269.1,3.2078]
[1737643050277,3.35248363,3269.2,3269.1,3.2078]
[1737643050469,3.2078,3270.1,3269.1,3.2078]
[1737643050470,4.00207629,3269.4,3269.1,3.2078]
[1737643050777,3.2078,3270.1,3269.1,3.2078]
[1737643050969,3.2078,3270.1,3269.7,3.2078]
[1737643051173,3.98469681,3270.0,3269.7,3.2078]
[1737643051370,0.61178,3270.6,3269.9,0.61191]
[1737643051670,0.61182,3270.4,3270.1,3.2078]
[1737643051867,3.98469681,3270.5,3270.1,3.2078]
[1737643052179,3.2078,3271.1,3270.1,3.2078]
[1737643052367,0.61175,3270.8,3270.6,3.2078]
[1737643052566,0.61174,3270.8,3270.6,3.2078]
[1737643052767,3.99412336,3270.7,3270.2,3.2078]
[1737643052969,0.61184,3270.3,3270.2,3.2078]
[1737643053265,0.61187,3270.1,3269.8,3.2078]
[1737643053467,3.88305313,3270.3,3269.8,3.2078]
[1737643053670,0.04536279,3270.5,3269.8,3.2078]
[1737643053876,3.92841592,3270.2,3269.8,3.2078]
[1737643054081,0.61188,3270.1,3269.8,3.2078]
[1737643054374,3.99036618,3270.1,3269.8,3.2078]
[1737643054575,0.61189,3270.0,3269.8,3.2078]
[1737643054968,0.04536279,3269.9,3269.8,3.2078]
[1737643055471,0.65727279,3269.9,3269.8,3.2078]
[1737643057075,0.04536279,3269.9,3269.8,3.81973]
[1737643057371,0.04536279,3269.9,3269.8,44.0078]
[1737643057564,3.2078,3270.5,3269.8,44.0078]
[1737643058072,4.0326968,3270.4,3269.8,44.0078]
[1737643058276,0.61183,3270.3,3270.2,3.2078]
[1737643058476,0.61177,3270.7,3270.3,0.61182]
[1737643058683,13.05125789,3271.2,3270.6,3.2078]
[1737643058870,0.61176,3270.7,3270.6,3.2078]
[1737643060075,4.55574083,3270.7,3270.6,3.2078]
[1737643060381,0.61176,3270.7,3270.6,3.2078]
[1737643060572,7.29646446,3270.7,3268.6,3.2078]
[1737643060774,3.2078,3270.4,3269.5,3.2078]
[1737643061078,0.04527364,3270.0,3269.6,0.61195]
[1737643061278,0.04527364,3270.0,3269.8,0.61192]
[1737643061464,0.04527364,3270.0,3269.5,3.2078]
[1737643061666,0.04527364,3270.0,3269.9,3.2078]
[1737643062380,3.2078,3271.3,3269.9,3.2078]
[1737643062381,0.61166,3271.3,3270.5,0.61179]
[1737643062569,0.61163,3271.4,3270.7,0.61176]
[1737643062769,3.35248363,3271.2,3270.5,3.2078]
[1737643062970,7.37709747,3271.2,3270.8,40.8]
[1737643063171,3.35248363,3271.2,3270.8,40.8]
[1737643063370,3.35248363,3271.7,3270.8,40.8]
[1737643063577,13.05125789,3272.6,3271.5,3.2078]
[1737643063784,0.61142,3272.5,3272.1,3.2078]
[1737643063982,3.95947331,3272.4,3271.7,3.2078]
[1737643064173,0.61146,3272.3,3272.0,0.00458519]
[1737643064369,4.01001258,3272.3,3272.1,3.2078]
[1737643064569,0.2958613,3272.3,3272.1,3.2078]
[1737643064772,1.52782,3274.1,3272.1,3.2078]
[1737643064773,3.2078,3273.9,3272.2,1.2145]
[1737643064980,3.05599611,3273.4,3272.9,3.2078]
[1737643065185,14.71970563,3273.6,3272.9,3.81913]
[1737643065480,0.61125,3273.4,3272.9,3.2078]
[1737643065782,3.05599611,3273.0,3272.2,1.2145]
[1737643066081,3.05599611,3272.6,3272.2,1.2145]
[1737643066282,4.03135144,3272.9,3272.5,3.2078]
[1737643066475,4.64265144,3273.2,3272.6,0.61139]
[1737643066675,3.05599611,3273.2,3272.9,3.2078]
[1737643066876,14.10848563,3273.6,3272.9,3.2078]
[1737643067083,17.16448174,3273.6,3273.4,3.2078]
[1737643067276,17.16448174,3273.6,3273.4,3.81905]
[1737643067577,14.10848563,3273.6,3273.4,3.2078]
[1737643067885,0.61131,3273.1,3272.9,3.2078]
[1737643068179,6.96692118,3273.0,3272.2,1.2145]
[1737643068384,3.05599611,3272.6,3272.2,1.2145]
[1737643068686,3.05599611,3272.6,3272.3,3.2078]
[1737643068876,6.96692118,3272.5,3272.3,3.2078]
[1737643069075,2.58006558,3272.5,3272.3,11.56028363]
[1737643069282,4.88005363,3274.7,3272.3,11.56028363]
[1737643069283,0.61122,3273.6,3273.1,0.61131]
[1737643069484,3.05599611,3274.0,3272.9,3.2078]
[1737643069678,3.05599611,3274.0,3272.6,0.61138]
[1737643069679,3.05599611,3272.9,3272.6,0.61138]
[1737643069875,3.05599611,3273.3,3272.5,3.2078]
[1737643070181,3.2078,3273.6,3272.5,3.2078]
[1737643070182,3.05599611,3272.7,3272.5,3.2078]
[1737643070385,3.05599611,3272.9,3272.5,3.2078]
[1737643070681,10.24627963,3272.6,3272.0,0.00458519]
[1737643070976,3.35248363,3273.0,3272.0,0.00458519]
[1737643070977,3.05599611,3272.2,3272.0,0.00458519]
[1737643071180,3.2078,3274.7,3272.5,3.2078]
[1737643071371,1.52737,3275.1,3272.1,4.88123363]
[1737643071372,0.61104,3274.6,3273.8,3.2078]
[1737643071571,3.05599611,3274.7,3273.8,3.2078]
[1737643071778,3.05599611,3274.7,3274.2,3.2078]
[1737643072082,3.2078,3275.3,3274.2,3.2078]
[1737643072279,0.61101,3274.8,3274.2,3.2078]
[1737643072476,0.61097,3275.0,3274.3,0.61107]
[1737643072679,3.05599611,3275.5,3274.6,3.2078]
[1737643072878,3.66691611,3275.2,3274.5,0.61104]
[1737643073180,3.05599611,3274.6,3274.3,0.00458519]
[1737643073376,3.05599611,3274.7,3274.3,0.00458519]
[1737643073578,3.2078,3275.6,3274.5,3.2078]
[1737643073778,3.05599611,3275.3,3274.9,3.2078]
[1737643073983,3.05599611,3274.7,3274.3,0.00458519]
[1737643074184,3.05599611,3274.9,3274.3,0.00458519]
[1737643074576,3.66698611,3274.9,3274.3,0.00458519]
[1737643074784,3.66706611,3274.4,3274.3,0.00458519]
[1737643074985,3.05599611,3274.4,3274.3,0.00458519]
[1737643075284,0.61099,3274.8,3274.3,0.00458519]
[1737643075477,3.05599611,3274.6,3274.3,0.00458519]
[1737643075988,1.1351,3274.9,3274.3,0.00458519]
[1737643076188,0.61106,3274.5,3274.3,0.00458519]
[1737643076389,0.61107,3274.4,3274.3,0.00458519]
[1737643076687,7.55631657,3274.4,3274.3,0.00458519]
[1737643076983,3.66706611,3274.4,3274.3,0.00458519]
[1737643077181,7.56381593,3274.4,3274.3,0.00458519]
[1737643077382,0.61109,3274.3,3273.2,3.2078]
[1737643077688,3.05599611,3273.8,3273.2,3.2078]
[1737643077877,3.05599611,3273.7,3273.2,3.2078]
[1737643078082,3.05599611,3273.5,3273.2,3.2078]
[1737643078579,3.66724611,3273.4,3273.2,3.2078]
[1737643078888,0.61129,3273.2,3273.0,0.00458519]
[1737643079087,3.05599611,3273.1,3273.0,0.00458519]
[1737643079286,6.56028363,3274.1,3273.0,3.21238519]
[1737643079480,3.05599611,3273.3,3273.0,3.21238519]
[1737643079675,4.00665745,3273.4,3273.0,3.21238519]
[1737643079876,3.05599611,3273.4,3273.0,3.21238519]
[1737643080081,6.26379611,3273.1,3273.0,0.00458519]
[1737643080295,6.87510611,3273.1,3273.0,0.00458519]
[1737643080483,10.83998055,3273.1,3273.0,0.00458519]
[1737643080683,13.58115418,3273.1,3272.2,3.2078]
[1737643080890,6.26379611,3272.3,3271.4,1.1414]
[1737643081084,3.96487444,3273.1,3270.1,6.24182376]
[1737643081085,0.61165,3271.3,3270.7,3.81955]
[1737643081408,3.05599611,3271.3,3270.7,3.2078]
[1737643081690,1.1537,3272.2,3271.2,3.2078]
[1737643081883,0.00458519,3271.3,3271.2,3.81946]
[1737643082080,3.2078,3272.8,3271.2,8.2078]
[1737643082291,3.05599611,3272.6,3272.2,3.2078]
[1737643082480,3.93119155,3273.0,3272.2,3.2078]
[1737643082680,3.05599611,3273.0,3272.3,40.8]
[1737643082878,3.05599611,3272.9,3272.2,3.2078]
[1737643083085,6.33767686,3272.9,3272.3,0.61146]
[1737643083285,2.36099611,3272.3,3271.3,1.1414]
[1737643083586,0.61155,3271.9,3271.2,0.61165]
[1737643083782,2.36099611,3272.1,3271.7,3.2078]
[1737643083985,0.61138,3272.8,3272.1,0.61148]
[1737643084184,2.36099611,3272.7,3272.1,3.2078]
[1737643084383,4.01825724,3272.8,3272.5,3.2078]
[1737643084582,2.36555767,3272.9,3272.7,0.61138]
[1737643084782,2.36555767,3272.9,3272.5,3.81921]
[1737643085184,2.36555767,3272.9,3272.5,3.2078]
[1737643085487,3.99582346,3272.8,3272.3,0.00458519]
[1737643085892,0.61138,3272.8,3272.3,0.00458519]
[1737643086092,2.36099611,3272.4,3272.3,0.00458519]
[1737643086281,2.36099611,3272.5,3272.3,0.00458519]
[1737643086786,0.00456156,3272.9,3272.5,0.61141]
[1737643086995,2.36555767,3272.9,3272.7,0.61137]
[1737643087195,2.36555767,3272.9,3272.8,0.61137]
[1737643087383,0.61137,3272.8,3272.5,3.2078]
[1737643087587,2.36555767,3272.9,3272.5,3.2078]
[1737643088285,2.36099611,3272.6,3272.5,3.2078]
[1737643088589,2.97239611,3272.6,3272.5,3.2078]
[1737643088796,0.61144,3272.4,3272.3,0.00458519]
[1737643089096,6.94091912,3272.4,3272.3,0.00458519]
[1737643089284,6.32947912,3272.4,3271.1,3.2078]
[1737643089487,2.36099611,3271.7,3271.4,0.61162]
[1737643089683,2.36099611,3271.4,3271.1,3.2078]
[1737643089992,2.36099611,3271.2,3270.4,3.2078]
[1737643090197,2.36099611,3270.8,3270.4,3.2078]
[1737643090390,2.36099611,3270.8,3270.5,0.67293272]
[1737643090595,2.36099611,3270.8,3270.6,0.61177]
[1737643090893,2.36099611,3270.8,3270.7,40.8]
[1737643091194,2.3598,3271.5,3270.7,40.8]
[1737643091195,0.61156,3271.8,3271.4,0.61162]
[1737643091495,3.2078,3272.0,3271.4,0.61162]
[1737643091496,2.36099611,3271.5,3271.4,0.61162]
[1737643091688,1e-08,3271.5,3271.4,0.61162]
[1737643091889,2.3598,3272.4,3271.4,5.0]
[1737643092091,2.3598,3272.4,3271.6,3.2078]
[1737643092298,1.1079,3272.5,3272.0,3.2078]
[1737643092493,1.2127,3273.3,3272.4,3.2078]
[1737643092692,1.2127,3273.3,3272.0,3.2078]
[1737643092693,0.00458519,3272.6,3272.0,3.2078]
[1737643092893,0.00458519,3272.6,3272.2,0.61146]
[1737643093103,0.00458519,3272.6,3271.8,3.2078]
[1737643093104,3.96791318,3272.5,3271.8,3.45368315]
[1737643093294,3.96791318,3272.5,3272.0,0.00458519]
[1737643093491,0.00458519,3272.6,3272.3,3.2078]
[1737643093691,0.61600519,3272.6,3272.2,3.81927]
[1737643093998,0.61143,3272.5,3272.2,3.81927]
[1737643094186,0.00458519,3272.6,3272.2,3.2078]
[1737643094391,0.61144,3272.4,3272.2,3.2078]
[1737643094595,3.2078,3272.3,3272.0,0.00458519]
[1737643094799,0.6115,3272.1,3272.0,0.00458519]
[1737643095298,4.67122244,3272.1,3272.0,0.00458519]
[1737643095499,0.61159,3271.7,3271.4,0.61162]
[1737643095798,3.2078,3271.5,3270.7,44.0078]